Cogmind - Beta 14 @@@ ROGUE MODE // 2025.03.07 @ 08:53:41 Player: Zargoosa Result: Destroyed by G-47 Trooper with Particle Gun Performance ------------- Evolutions (0) 0 Regions Visited (1) 200 Robots Destroyed (17) 85 Value Destroyed (400) 400 Prototype IDs (0) 0 Alien Tech Used (0) 0 Bonus (0) 0 TOTAL SCORE: 685 Bonus ------- None Cogmind --------- Core Integrity 0/250 Matter 295/300 Energy 98/100 System Corruption 0% Temperature Cool (10) Movement Walking (120) Location -10/Materials Parts ------- > --- POWER (1) -------- (None) > --- PROPULSION (2) --- Aluminum Leg > --- UTILITY (2) ------ Small Storage Unit Light Armor Plating > --- WEAPON (2) ------- Small Laser Small Laser > --- INVENTORY (8) ---- Light Ion Engine Light Treads Aluminum Leg Compact Wheel Structural Scanner Tractor Beam Small Laser Mining Laser Peak State ------------ > --- POWER ------------ Light Ion Engine > --- PROPULSION ------- Aluminum Leg Aluminum Leg > --- UTILITY ---------- Small Storage Unit Seismic Detector > --- WEAPON ----------- Light Assault Rifle Light Assault Rifle > --- INVENTORY -------- Light Ion Engine Light Treads Light Treads Compact Wheel Small Laser [Rating: 7] Favorites ----------- Power Light Ion Engine Engine Light Ion Engine Propulsion Aluminum Leg Leg Aluminum Leg Utility Small Storage Unit Device Seismic Detector Storage Small Storage Unit Protection Propulsion Shielding Weapon Light Assault Rifle Energy Gun Small Laser Ballistic Gun Light Assault Rifle Ballistic Cannon Light Cannon Build | -11 -10 ------- Run | Yrd Mat Slots Evolved . | . . Power . | . . Propulsion . | . . Utility . | . . Weapon . | . . Parts Attached 17 | 7 10 Power 1 | 1 . Engine 1 | 1 . Core . | . . Reactor . | . . Propulsion 6 | 2 4 Treads . | . . Leg 6 | 2 4 Wheel . | . . Hover . | . . Flight . | . . Utility 4 | 2 2 Device 1 | 1 . Storage 1 | 1 . Processor . | . . Hackware . | . . Protection 2 | . 2 Artifact . | . . Weapon 6 | 2 4 Energy Gun 3 | . 3 Energy Cannon . | . . Ballistic Gun 2 | 2 . Ballistic Cannon 1 | . 1 Launcher . | . . Special Weapon . | . . Impact Weapon . | . . Slashing Weapon . | . . Piercing Weapon . | . . Special Melee Weapon . | . . Unidentified Prototypes . | . . Parts Lost 5 | . 5 Power 1 | . 1 Propulsion 1 | . 1 Utility 1 | . 1 Weapon 2 | . 2 Highest Loss Streak 3 | . 3 To Critical Strikes . | . . Average Slot Usage (%) 89 | . 89 Engine 10 | . 10 Leg 28 | . 28 Device 4 | . 4 Storage 14 | . 14 Protection 3 | . 3 Energy Gun 5 | . 5 Ballistic Gun 11 | . 11 Ballistic Cannon 10 | . 10 Peak Build Rating 7 | 7 7 Average Rating 6 | 5 6 On Entrance 3 | . 7 Naked Turns . | . . Heaviest Build 13 | 11 13 Greatest Support 20 | 20 20 Greatest Overweight (x) . | . . Average Overweight (x) . | . . Largest Inventory Capacity 8 | 8 8 Average Capacity 7 | 6 8 Most Carried 8 | 7 8 Average Carried 7 | 4 7 Final Capacity 8 | 8 8 Final Carried 8 | 7 8 Class Distribution -------------------- 100% | Mutant Dominant Class ---------------- Mutant | -10/Materials Resources | -11 -10 ----------- Run | Yrd Mat Matter Collected 478 | 257 221 Remotely . | . . Salvage Created 489 | 79 410 Parts 28 | 5 23 Haulers Intercepted . | . . Recyclers Shooed . | . . Parts Field Recycled . | . . Retrieved Matter . | . . Parts Self-Destructed . | . . Prevented . | . . Kills | -11 -10 ------- Run | Yrd Mat Combat Hostiles Destroyed 10 | . 10 Guns 6 | . 6 Cannons 3 | . 3 Classes Destroyed 6 | 2 4 Worker 3 | . 3 Builder 1 | . 1 Tunneler 1 | 1 . Recycler 1 | 1 . Watcher 1 | . 1 Grunt 10 | . 10 Best Kill Streak 6 | 2 6 Combat Bots Only 2 | . 2 Max Kills in Single Turn 1 | 1 1 Gunslinging . | . . Exploded . | . . Melee . | . . Uniques/NPCs Destroyed . | . . Combat | -11 -10 -------- Run | Yrd Mat Hostile Shots Fired 116 | . 116 Missed 34 | . 34 Damage Taken 1013 | . 1013 Core 260 | . 260 Absorbed by Shields . | . . Redirected to Shielding 37 | . 37 Core Remaining (%) 100 | 100 . Volleys Fired 57 | 9 48 Largest 2 | 2 2 Hottest 80 | 40 80 Shots Fired 112 | 18 94 Gun 85 | 18 67 Cannon 27 | . 27 Launcher . | . . Special . | . . Kinetic 76 | 18 58 Thermal 36 | . 36 Explosive . | . . Electromagnetic . | . . Robot Hit Streak 18 | 5 18 Robot Miss Streak 5 | 4 5 Penetration Max . | . . Secondary Targets 1 | . 1 Max Gunslinging Chain 1 | . 1 Shots Hit Robots 80 | 12 68 Core Hits 27 | 4 23 Critical Kills . | . . Critical Parts Destroyed . | . . Critical Strikes 2 | . 2 Blast 2 | . 2 Melee Attacks . | . . Impact . | . . Slashing . | . . Piercing . | . . Sneak Attacks . | . . Combat Hostiles . | . . Follow-up Attacks . | . . Damage Inflicted 924 | 90 834 Guns 609 | 90 519 Cannons 312 | . 312 Explosions . | . . Melee . | . . Ramming 3 | . 3 Kinetic 587 | 90 497 Thermal 334 | . 334 Explosive . | . . Electromagnetic . | . . Impact . | . . Slashing . | . . Piercing . | . . Highest Corruption . | . . Average Corruption . | . . Corruption Purged . | . . Corruption Blocked . | . . Overload Shots . | . . Overflow Damage . | . . Projectiles . | . . Explosions . | . . Melee . | . . Knockbacks 4 | . 4 Impact . | . . Kinetic 4 | . 4 Secondary . | . . Self-Inflicted Damage . | . . Shots . | . . Rammed . | . . Targets Rammed 2 | . 2 Kicked 2 | . 2 Crushed . | . . Highest Temperature 132 | . 132 Average Temperature 37 | . 37 Received Heat Transfer 630 | . 630 Siege Activations . | . . Robots Corrupted . | . . Combat Hostiles . | . . Parts Fried . | . . Impact Corruptions . | . . Robots Melted 1 | . 1 Combat Hostiles 1 | . 1 Parts Melted 3 | . 3 Heat Transferred 750 | . 750 Parts Sabotaged . | . . Parts Stolen . | . . Parts Stripped . | . . Power Chain Reactions . | . . Alert | -11 -10 ------- Run | Yrd Mat Peak Influence 239 | 10 239 Initial 6 | . 6 Average 67 | 2 77 Maximum Alert Level 1 | . 1 Low Security (%) 94 | 100 93 Level 1 5 | . 6 Level 2 . | . . Level 3 . | . . Level 4 . | . . Level 5 . | . . High Security . | . . Max Security . | . . Squads Dispatched 3 | . 3 Investigation 2 | . 2 Extermination . | . . Reinforcement 1 | . 1 Assault . | . . Garrison . | . . Intercept . | . . Searches Triggered . | . . Construction Impeded . | . . Haulers Reinforced . | . . Active Scanning Responses . | . . Cargo Convoy Interrupts . | . . Stealth | -11 -10 --------- Run | Yrd Mat Distress Signals 3 | . 3 Communications Jammed . | . . Distress Signals . | . . Times Spotted 22 | . 22 Peak Tracking Total 5 | . 5 Tactical Retreats 4 | . 4 Traps | -11 -10 ------- Run | Yrd Mat Traps Triggered . | . . Indirectly . | . . Trap Hack Attempts . | . . Triggered . | . . Disarmed . | . . Reprogrammed . | . . Reused . | . . Traps Extracted . | . . Installed . | . . Triggered . | . . Machines | -11 -10 ---------- Run | Yrd Mat Machines Disabled 1 | . 1 Max in Single Turn 1 | . 1 Machines Repaired . | . . Machines Dismantled . | . . Machines Sabotaged . | . . Overloaded Fab Kills . | . . Hacking | -11 -10 --------- Run | Yrd Mat Machines Accessed 5 | . 5 Terminals 4 | . 4 Fabricators . | . . Repair Stations . | . . Recycling Units 1 | . 1 Scanalyzers . | . . Garrison Access . | . . Total Hacks 21 | . 21 Successful 13 | . 13 Failed 8 | . 8 Catastrophic . | . . Database Lockouts . | . . Manual 12 | . 12 Terminals 16 | . 16 Fabricators . | . . Repair Stations . | . . Recycling Units 5 | . 5 Scanalyzers . | . . Garrison Access . | . . Terminal Hacks 3 | . 3 Branch Access Points 1 | . 1 Alert Level 1 | . 1 Investigation Status 1 | . 1 Fabricator Hacks . | . . Repair Station Hacks . | . . Recycling Unit Hacks 3 | . 3 Process 1 | . 1 Report Inventory 1 | . 1 Retrieve Matter 1 | . 1 Scanalyzer . | . . Garrison Access Hacks . | . . Unauthorized Hacks 7 | . 7 Terminals 6 | . 6 Botnet 3 | . 3 Skim 3 | . 3 Fabricators . | . . Repair Stations . | . . Recycling Units 1 | . 1 Tunnel 1 | . 1 Scanalyzers . | . . Garrison Access . | . . Data Cores Recovered . | . . Used . | . . Hacking Detections 3 | . 3 Full Trace Events 2 | . 2 Feedback Events . | . . Feedback Blocked . | . . Robot Schematics Acquired . | . . Robots Built . | . . Authchips . | . . Time . | . . Total Robot Build Rating . | . . Part Schematics Acquired . | . . Parts Built . | . . Authchips . | . . Time . | . . Total Part Build Rating . | . . Parts Repaired . | . . Time . | . . Parts Recycled . | . . Recycled Matter 93 | . 93 Retrieved Matter 93 | . 93 Retrieved Components . | . . Parts Scanalyzed . | . . Part Schematics Acquired . | . . Parts Damaged . | . . Bothacking | -11 -10 ------------ Run | Yrd Mat Used RIF Installer . | . . Robots Hacked . | . . Non-combat . | . . Combat . | . . Robot Hacks Applied . | . . Relay Couplers Released . | . . Fabnet Peak Effective % . | . . Robots Rewired . | . . Allies Hacked . | . . Hacks Repelled . | . . Allies | -11 -10 -------- Run | Yrd Mat Total Allies . | . . Largest Group . | . . Highest-Rated Group . | . . Highest-Rated Ally . | . . Total Orders . | . . Ally Attacks . | . . Total Damage . | . . Kills . | . . Allies Corrupted . | . . Allies Melted . | . . Intel | -11 -10 ------- Run | Yrd Mat Robot Analysis Total . | . . Derelict Logs Recovered . | . . Drone Launches . | . . Drone Recoveries . | . . Exploration | -11 -10 ------------- Run | Yrd Mat Turns Passed 903 | 122 781 Spaces Moved 524 | 63 461 Core 4 | 4 . Treads . | . . Legs 520 | 59 461 Wheels . | . . Hover . | . . Flight . | . . Fastest Speed 50 | 50 120 Average Speed 119 | 115 120 Slowest Speed 120 | 120 120 Overloaded Moves . | . . Propulsion Burnouts . | . . Robots Hopped . | . . Cave-ins Triggered . | . . Exploration Rate (%) 32 | 4 61 Regions Visited 1 Branch Regions . Pre-discovered Areas 1 | . 1 Known Exits Taken . | . . Unknown Exits Taken 1 | 1 . Scrap Searched . | . . Spaces Dug . | . . Terrain Destroyed . | . . Melee . | . . Projectile . | . . AOE . | . . Terrain Rammed . | . . Walls Destroyed . | . . Machines Disabled . | . . Actions | -11 -10 --------- Run | Yrd Mat Total 695 | 94 601 Wait 82 | 9 73 Move 523 | 62 461 Hop . | . . Pick Up 9 | 7 2 Fast Attach 9 | 7 2 Attach 1 | . 1 Detach . | . . Swap 7 | . 7 Drop 5 | . 5 Fire 57 | 9 48 Melee . | . . Ram . | . . Kick 2 | . 2 Crush . | . . Escape Stasis . | . . Rewire . | . . Trap . | . . Miscellaneous . | . . Route ------- -11/Scrapyard -10/Materials (discovered 3 exits: [*Mat] / *Min x2) History --------- Turn | Location | Event 11 | -11/Scrapyard | Discovered new exit (range 16) 123 | -11/Scrapyard | Entered Materials 317 | -10/Materials | Build established: Mutant 390 | -10/Materials | Core integrity fell below 50% 430 | -10/Materials | Discovered new exit (range 16) 471 | -10/Materials | Identified exit to Mines 600 | -10/Materials | Discovered new exit (range 7) 774 | -10/Materials | Lost 3 parts (1p2w) 784 | -10/Materials | Core integrity fell below 20% 904 | -10/Materials | Destroyed by G-47 Trooper with Particle Gun Last Messages --------------- 00869_ R-06 Scavenger collects Sml. Matter Pod. 00876_ R-06 Scavenger collects Lgt. Ion Engine. 00882_ Critical hit (Burn: +37). 00885_ Sml. Laser melted. 00885_ Heat Sink melted. 00885_ G-34 Mercenary destroyed. 00885_ Switching to secondary target: G-47 Trooper. 00892_ Connecting with Terminal... >>Trojan(Botnet) Trojan loaded successfully. Testing... Terminal linked with 2 systems. Awaiting botnet instructions. >>Trojan(Skim) Trojan loaded successfully. Testing... Terminal linked with 1 system. Please expand to 3 more systems! 00899_ W-16 Scout sends out distress signal. 00902_ Aluminum Leg destroyed. Map ----- +----------------------------------------------------+ | | | | | | | | | | | | | | | | | ???????????????????????????????????????? | | ???????????????????????????????????????? | | ???????????????????????????????????????? | | ???????????????????????????????????????? | | ???????????????????????????????????????? | | ???????????????????????????????????????? | | ???????????????????????????????????????? | | ???????????????????????????????????????? | | ??????????????????????#####????????????? | | ?????????????????????##"""##???????????? | | ????????????????????##"!!!"##??????????? | | ????????????????????#"" ""#??????????? | | ????????????????????# #??????????? | | ????????????????????# > #??????????? | | ????????????????????# #??????????? | | ????????????????????# #??????????? | | ?????????????????????# u #???????????? | | ????????????######????# @###########??? | | ????????????# ##### # ???? | | ????????????# ^ + """ ""????? | | ????????##### # """ R????? | | ??????? !!/ T # """ ""????? | | ?????????#### !/ k #? ?????? | | ????????????#w !/ g #? ?????? | | ????????????# #?? ! ????? | | ????????????# u #?? ????? | | ?????#####??#w ###+#####????? | | ????? = !?# ###??????? | | ?????? # """ #??????? | | ##?????? # """ #??????? | | #???????"" + """% ^#??????? | | #????????" # #??????? | | #????????"?# !| #??????? | | #??????????# !| +??????? | | #??????????# ######### #??????? | | #??????????# #???????? #??????? | | ############# #?????????###??????? | | % |!%=!%*= #??????????????????? | | #####+#%!######+###+#??????????????????? | | #=!#??? ??????????????????????? | | """ + #?? ??????????????????????? | | "Y" ## #? ?????????????????????? | +----------------------------------------------------+ Best States ------------- Heat Dissipation 25 Energy Generation 10 Energy Capacity 125 Matter Stores 300 Matter Capacity 300 Sight Range 16 Terrain Scan Density 10 Armor Coverage 150 Propulsion Shielding 33 Evasion (%) 55 Item Schematics ----------------- None Robot Schematics ------------------ None Fabricated ------------ Nothing Alien Tech Used ----------------- None Achievements -------------- None Challenges ------------ None Game ------ Seed MiniFusionDrive Manual? 0 Play Time 00:10:56 Cumulative 22.1 hours Start 2025.03.07 @ 08:43:05 End 2025.03.07 @ 08:53:41 Sessions 1 Manual Loads 0 Difficulty Rogue Special Mode None Game No. 42 Rogue 42 Adventurer 0 Explorer 0 Win Type - Total 0 Types 0/0/0/0/0/0/0/0/0 Lore% 12 Gallery% 23 Achievement% 23 Wizard Run 0 Options --------- Layout 1 ASCII 0 Keyboard 0 Movement Arrows Keybinds 0 Fullscreen 1 Font 16/SmallcapsGlow Map View 55x38 Zoom Use 0% Tactical HUD 1 Map Filters NONE Filters NONE Steam 1 RUN: f4e34a20-3024-4743-b181-c94a15fa7174